[Event "8th RTU Open 2018"]
[Site "Riga"]
[Date "2018.08.09"]
[Round "5"]
[White "Gorodetzky, David"]
[Black "Pulkkinen, Kari"]
[Result "1/2-1/2"]
[ECO "A48"]
[WhiteElo "2451"]
[BlackElo "2242"]
[Annotator "ChessBase"]
[PlyCount "52"]
[EventDate "2018.08.06"]
[EventType "swiss"]
[EventCountry "LAT"]
[SourceTitle "playchess.com"]
[Source "ChessBase"]
[SourceQuality "1"]
[TimeControl "5400+30"]

1. d4 {[%emt 0:00:13]} Nf6 {[%emt 0:00:00]} 2. Nf3 {[%emt 0:00:03]} g6 {[%emt 0:00:35]} 3. b3 {[%emt 0:02:48]} Bg7 {[%emt 0:04:37]} 4. Bb2 {[%emt 0:01:43]} O-O {[%emt 0:00:56]} 5. e3 {[%emt 0:08:12]} c5 {[%emt 0:03:40]} 6. Bd3 {[%emt 0:13:07]} cxd4 {[%emt 0:01:34]} 7. exd4 {[%emt 0:00:07]} d6 {[%emt 0:01:17]} 8. O-O {[%emt 0:01:13]} Nc6 {[%emt 0:01:05]} 9. Re1 {[%emt 0:05:25]} Nb4 {[%emt 0:07:36]} 10. Bf1 {[%emt 0:04:49]} Bf5 {[%emt 0:01:52]} 11. Na3 {[%emt 0:00:34]} a5 {[%emt 0:03:13]} 12. c3 {[%emt 0:07:17]} Nbd5 {[%emt 0:00:45]} 13. Bd3 {[%emt 0:07:12]} Bxd3 {[%emt 0:01:27]} 14. Qxd3 {[%emt 0:00:02]} Qd7 {[%emt 0:03:51]} 15. Qb5 {[%emt 0:08:03]} Qc7 {[%emt 0:03:08]} 16. Qf1 {[%emt 0:07:40]} Rfc8 {[%emt 0:02:15]} 17. c4 {[%emt 0:03:49]} Nb4 {[%emt 0:01:55]} 18. d5 {[%emt 0:01:05]} Re8 {[%emt 0:07:40]} 19. Bc3 {[%emt 0:06:55]} Qc5 {[%emt 0:05:49]} 20. Bd4 {[%emt 0:01:16]} Qc8 {[%emt 0:00:25]} 21. Qe2 {[%emt 0:08:53]} e6 {[%emt 0:07:38]} 22. dxe6 {[%emt 0:00:42]} Rxe6 {[%emt 0:00:07]} 23. Qf1 {[%emt 0:00:54]} d5 {[%emt 0:03:23]} 24. Red1 {[%emt 0:03:18]} dxc4 {[%emt 0:01:53]} 25. Nxc4 {[%emt 0:00:34]} Qe8 {[%emt 0:01:56]} 26. Ng5 {[%emt 0:03:33]} Re7 1/2-1/2

[Event "8th RTU Open 2018"]
[Site "Riga"]
[Date "2018.08.09"]
[Round "5"]
[White "Carlsson, Pontus"]
[Black "Schroeder, Jan Christian"]
[Result "1-0"]
[ECO "C60"]
[WhiteElo "2442"]
[BlackElo "2573"]
[Annotator "ChessBase"]
[PlyCount "79"]
[EventDate "2018.08.06"]
[EventType "swiss"]
[EventCountry "LAT"]
[SourceTitle "playchess.com"]
[Source "ChessBase"]
[SourceQuality "1"]
[TimeControl "5400+30"]

1. e4 {[%emt 0:10:27]} e5 {[%emt 0:00:00]} 2. Nf3 {[%emt 0:00:31]} Nc6 {[%emt 0:00:00]} 3. Bb5 {[%emt 0:00:21]} g6 {[%emt 0:00:00]} 4. O-O {[%emt 0:15:48]} Bg7 {[%emt 0:00:28]} 5. c3 {[%emt 0:00:05]} a6 {[%emt 0:02:17]} 6. Ba4 {[%emt 0:00:24]} b5 {[%emt 0:04:53]} 7. Bb3 {[%emt 0:03:33]} Na5 {[%emt 0:10:58]} 8. Bc2 {[%emt 0:01:39]} c5 {[%emt 0:11:06]} 9. d4 {[%emt 0:06:41]} cxd4 {[%emt 0:02:23]} 10. cxd4 {[%emt 0:00:07]} exd4 {[%emt 0:00:10]} 11. e5 {[%emt 0:06:32]} Bb7 {[%emt 0:07:43]} 12. Nbd2 {[%emt 0:12:04]} d5 {[%emt 0:18:13]} 13. exd6 {[%emt 0:04:44]} Qxd6 {[%emt 0:01:25]} 14. Ne4 {[%emt 0:00:49]} Bxe4 {[%emt 0:04:01]} 15. Bxe4 {[%emt 0:03:34]} Ra7 {[%emt 0:03:28]} 16. Qe1 {[%emt 0:06:12]} Nc4 {[%emt 0:09:42]} 17. a4 {[%emt 0:06:53]} Ne7 {[%emt 0:05:40]} 18. axb5 {[%emt 0:05:49]} O-O {[%emt 0:04:53]} 19. Rxa6 {[%emt 0:06:29]} Rxa6 {[%emt 0:05:05]} 20. bxa6 {[%emt 0:00:01]} Nd5 {[%emt 0:00:09]} 21. Qe2 {[%emt 0:01:23]} Qc5 {[%emt 0:02:56]} 22. Bd3 {[%emt 0:01:00]} Nd6 {[%emt 0:00:14]} 23. Bd2 {[%emt 0:00:49]} Re8 {[%emt 0:00:19]} 24. Qd1 {[%emt 0:00:16]} Ne3 {[%emt 0:02:10]} 25. Qc1 {[%emt 0:01:12]} Qb6 {[%emt 0:00:48]} 26. fxe3 {[%emt 0:03:11]} dxe3 {[%emt 0:00:03]} 27. Bc3 {[%emt 0:00:10]} e2+ {[%emt 0:01:59]} 28. Rf2 {[%emt 0:00:03]} Re3 {[%emt 0:01:24]} 29. Ne1 {[%emt 0:00:34]} Bxc3 {[%emt 0:00:23]} 30. Qxc3 {[%emt 0:00:39]} Re6 {[%emt 0:01:35]} 31. g3 {[%emt 0:01:57]} Qa7 {[%emt 0:00:26]} 32. Kg2 {[%emt 0:00:49]} Qa8+ {[%emt 0:00:01]} 33. Rf3 {[%emt 0:01:00]} Re3 {[%emt 0:00:33]} 34. Qd2 {[%emt 0:00:33]} Re6 {[%emt 0:00:43]} 35. Kg1 {[%emt 0:00:29]} Qa7+ {[%emt 0:00:10]} 36. Kg2 {[%emt 0:00:10]} Qa8 {[%emt 0:00:08]} 37. Qf4 {[%emt 0:00:48]} Qd5 {[%emt 0:00:16]} 38. a7 {[%emt 0:00:40]} Qa5 {[%emt 0:00:14]} 39. Re3 {[%emt 0:00:30]} Qd5+ {[%emt 0:01:46]} 40. Qf3 {[%emt 0:00:16]} 1-0

[Event "8th RTU Open 2018"]
[Site "Riga"]
[Date "2018.08.09"]
[Round "5"]
[White "Pechac, Jergus"]
[Black "Praggnanandhaa, R."]
[Result "1-0"]
[ECO "A20"]
[WhiteElo "2431"]
[BlackElo "2532"]
[Annotator "ChessBase"]
[PlyCount "85"]
[EventDate "2018.08.06"]
[EventType "swiss"]
[EventCountry "LAT"]
[SourceTitle "playchess.com"]
[Source "ChessBase"]
[SourceQuality "1"]
[TimeControl "5400+30"]

1. c4 {[%emt 0:02:42]} e5 {[%emt 0:00:00]} 2. g3 {[%emt 0:00:05]} h5 {[%emt 0:00:03]} 3. Nf3 {[%emt 0:02:35]} e4 {[%emt 0:00:39]} 4. Nd4 {[%emt 0:01:14]} Nc6 {[%emt 0:06:51]} 5. Nxc6 {[%emt 0:03:11]} dxc6 {[%emt 0:00:38]} 6. Nc3 {[%emt 0:01:30]} Nf6 {[%emt 0:02:52]} 7. Qc2 {[%emt 0:00:23]} Qd4 {[%emt 0:08:04]} 8. b3 {[%emt 0:03:00]} Bf5 {[%emt 0:05:03]} 9. Bb2 {[%emt 0:08:09]} Qd7 {[%emt 0:02:20]} 10. e3 {[%emt 0:06:37]} h4 {[%emt 0:06:47]} 11. Bg2 {[%emt 0:00:52]} O-O-O {[%emt 0:05:23]} 12. O-O-O {[%emt 0:05:09]} h3 {[%emt 0:10:15]} 13. Bxe4 {[%emt 0:00:24]} Nxe4 {[%emt 0:00:11]} 14. Nxe4 {[%emt 0:00:04]} Bg4 {[%emt 0:00:22]} 15. d4 {[%emt 0:02:52]} Bxd1 {[%emt 0:04:12]} 16. Rxd1 {[%emt 0:00:05]} Qg4 {[%emt 0:02:28]} 17. Rf1 {[%emt 0:03:09]} f5 {[%emt 0:07:50]} 18. f3 {[%emt 0:00:21]} Qh5 {[%emt 0:00:27]} 19. Nc3 {[%emt 0:02:00]} Re8 {[%emt 0:04:35]} 20. Qd3 {[%emt 0:02:23]} Qf7 {[%emt 0:03:05]} 21. Kc2 {[%emt 0:02:08]} g6 {[%emt 0:02:29]} 22. e4 {[%emt 0:02:48]} fxe4 {[%emt 0:08:59]} 23. fxe4 {[%emt 0:00:10]} Qd7 {[%emt 0:01:17]} 24. e5 {[%emt 0:00:58]} Bg7 {[%emt 0:01:15]} 25. Qxg6 {[%emt 0:08:40]} Rhf8 {[%emt 0:04:31]} 26. Rf4 {[%emt 0:00:09]} c5 {[%emt 0:05:07]} 27. Ne4 {[%emt 0:06:44]} Rxf4 {[%emt 0:00:54]} 28. gxf4 {[%emt 0:00:13]} cxd4 {[%emt 0:01:10]} 29. Nc5 {[%emt 0:00:45]} Qc6 {[%emt 0:01:26]} 30. Qxc6 {[%emt 0:01:46]} bxc6 {[%emt 0:00:01]} 31. Bxd4 {[%emt 0:00:19]} Bh6 {[%emt 0:01:56]} 32. f5 {[%emt 0:00:05]} Bf4 {[%emt 0:00:36]} 33. f6 {[%emt 0:00:19]} Bxh2 {[%emt 0:01:31]} 34. f7 {[%emt 0:01:08]} Rf8 {[%emt 0:01:00]} 35. e6 {[%emt 0:00:06]} Bd6 {[%emt 0:01:18]} 36. Ne4 {[%emt 0:00:10]} Be7 {[%emt 0:01:20]} 37. Be5 {[%emt 0:24:38]} Kd8 {[%emt 0:00:38]} 38. Nf2 {[%emt 0:00:31]} h2 {[%emt 0:00:40]} 39. Bxh2 {[%emt 0:01:15]} Rh8 {[%emt 0:00:10]} 40. Ng4 {[%emt 0:01:25]} Bd6 {[%emt 0:01:03]} 41. Be5 {[%emt 0:01:04]} Rf8 {[%emt 0:00:30]} 42. Bf6+ {[%emt 0:00:32]} Kc8 {[%emt 0:00:17]} 43. Nh6 {[%emt 0:00:28]} 1-0

[Event "8th RTU Open 2018"]
[Site "Riga"]
[Date "2018.08.09"]
[Round "5"]
[White "Fenil, Shah"]
[Black "Chukavin, Kirill"]
[Result "0-1"]
[ECO "B26"]
[WhiteElo "2412"]
[BlackElo "2291"]
[Annotator "NA"]
[PlyCount "130"]
[EventDate "2018.08.06"]
[EventType "swiss"]
[EventCountry "LAT"]
[SourceTitle "playchess.com"]
[Source "ChessBase"]
[SourceQuality "1"]
[TimeControl "5400+30"]

1. e4 {[%emt 0:01:09]} c5 {[%emt 0:00:00]} 2. Nc3 {[%emt 0:00:16]} Nc6 {[%emt 0:00:29]} 3. g3 {[%emt 0:00:54]} g6 {[%emt 0:00:19]} 4. Bg2 {[%emt 0:00:03]} Bg7 {[%emt 0:00:09]} 5. d3 {[%emt 0:00:04]} d6 {[%emt 0:00:49]} 6. Be3 {[%emt 0:00:14]} Rb8 {[%emt 0:02:17]} 7. Qd2 {[%emt 0:00:43]} b5 {[%emt 0:00:50]} 8. Nge2 {[%emt 0:01:24]} Nd4 {[%emt 0:02:01]} 9. O-O {[%emt 0:01:24]} e6 {[%emt 0:01:53]} 10. Nd1 {[%emt 0:05:55]} Ne7 {[%emt 0:01:55]} 11. Nc1 {[%emt 0:00:47]} e5 {[%emt 0:06:17]} 12. c3 {[%emt 0:10:02]} Ne6 {[%emt 0:13:02]} 13. Bh6 O-O 14. Bxg7 {[%emt 0:18:01]} Kxg7 {[%emt 0:06:30]} 15. Ne2 {[%emt 0:08:39]} d5 {[%emt 0:06:36]} 16. exd5 {[%emt 0:05:47]} Nxd5 {[%emt 0:01:53]} 17. Ne3 $11 {[%emt 0:01:46]} Nxe3 {[%emt 0:17:32]} 18. Qxe3 {[%emt 0:00:20]} Qd6 {[%emt 0:01:15]} 19. f4 {[%emt 0:06:22]} exf4 {[%emt 0:01:28]} 20. Nxf4 {[%emt 0:00:06]} Nxf4 {[%emt 0:02:22]} 21. Rxf4 {[%emt 0:00:15]} Bf5 {[%emt 0:05:44]} 22. d4 {[%emt 0:01:31]} Rfe8 {[%emt 0:05:54]} 23. dxc5 {[%emt 0:16:19]} Rxe3 {[%emt 0:00:17]} 24. cxd6 {[%emt 0:00:01]} Rd3 {[%emt 0:00:37]} 25. Rd4 {[%emt 0:00:25]} Rxd4 {[%emt 0:01:19]} 26. cxd4 {[%emt 0:00:01]} Rd8 {[%emt 0:00:35]} 27. Rc1 {[%emt 0:00:11]} Rxd6 {[%emt 0:01:15]} 28. d5 {[%emt 0:00:01]} Kf6 {[%emt 0:01:10]} 29. Rc5 {[%emt 0:01:18]} a6 {[%emt 0:04:25]} 30. Rc7 {[%emt 0:09:06]} Bb1 {[%emt 0:02:40]} 31. a3 {[%emt 0:00:02]} Ba2 {[%emt 0:00:47]} 32. b4 {[%emt 0:00:37]} Bxd5 {[%emt 0:07:44]} 33. Bxd5 {[%emt 0:00:01]} Rxd5 {[%emt 0:00:06]} 34. Rc6+ {[%emt 0:00:04]} Kg5 {[%emt 0:01:20]} 35. Rxa6 {[%emt 0:00:03]} Kg4 {[%emt 0:01:10]} 36. Rf6 {[%emt 0:03:59]} Rf5 {[%emt 0:00:32]} 37. Rd6 {[%emt 0:03:48]} Kh3 {[%emt 0:01:09]} 38. Rd4 {[%emt 0:02:25]} g5 {[%emt 0:00:26]} 39. Rd8 {[%emt 0:03:25]} g4 {[%emt 0:02:37]} 40. Rh8 {[%emt 0:01:41]} h5 {[%emt 0:00:12]} 41. Rh7 Rd5 {[%emt 0:00:41]} 42. Rxf7 {[%emt 0:01:17]} Rd1+ {[%emt 0:00:13]} 43. Kf2 {[%emt 0:00:01]} Rd2+ {[%emt 0:00:33]} 44. Ke3 {[%emt 0:01:00]} Rxh2 {[%emt 0:00:16]} 45. Rf5 {[%emt 0:00:24]} Kxg3 {[%emt 0:00:15]} 46. Rxb5 {[%emt 0:00:00]} h4 {[%emt 0:00:22]} 47. a4 {[%emt 0:00:10]} h3 {[%emt 0:00:25]} 48. a5 {[%emt 0:00:11]} Rb2 {[%emt 0:01:00]} 49. Kd3 {[%emt 0:01:33]} h2 {[%emt 0:01:00]} 50. Kc3 {[%emt 0:00:00]} Rxb4 {[%emt 0:00:56]} 51. Kxb4 {[%emt 0:00:25]} h1=Q {[%emt 0:00:06]} 52. a6 {[%emt 0:00:02]} Qa8 {[%emt 0:00:50]} 53. Ka5 {[%emt 0:00:13]} Kh3 {[%emt 0:00:49]} 54. Rb7 {[%emt 0:00:16]} g3 {[%emt 0:00:28]} 55. Rh7+ {[%emt 0:00:16]} Kg4 {[%emt 0:00:18]} 56. a7 {[%emt 0:00:12]} g2 {[%emt 0:00:24]} 57. Rg7+ {[%emt 0:00:11]} Kf5 {[%emt 0:01:21]} 58. Kb6 {[%emt 0:00:32]} Kf6 {[%emt 0:00:47]} 59. Rg3 {[%emt 0:00:56]} Qd8+ {[%emt 0:00:29]} 60. Kc6 {[%emt 0:01:10]} Qe8+ {[%emt 0:00:22]} 61. Kb6 {[%emt 0:01:42]} Qe6+ {[%emt 0:00:10]} 62. Kb7 {[%emt 0:00:39]} Qd7+ {[%emt 0:00:09]} 63. Kb6 {[%emt 0:00:26]} Qd6+ {[%emt 0:00:04]} 64. Kb5 {[%emt 0:00:04]} Qxg3 {[%emt 0:00:10]} 65. a8=Q {[%emt 0:00:05]} Qb3+ {[%emt 0:00:09]} 0-1

[Event "8th RTU Open 2018"]
[Site "Riga"]
[Date "2018.08.09"]
[Round "5"]
[White "Seeman, Tarvo"]
[Black "Modler, Andreas"]
[Result "1/2-1/2"]
[ECO "B40"]
[WhiteElo "2405"]
[BlackElo "2278"]
[Annotator "NA"]
[PlyCount "101"]
[EventDate "2018.08.06"]
[EventType "swiss"]
[EventCountry "LAT"]
[SourceTitle "playchess.com"]
[Source "ChessBase"]
[SourceQuality "1"]
[TimeControl "5400+30"]

1. Nf3 {[%emt 0:00:00]} c5 {[%emt 0:02:06]} 2. e4 {[%emt 0:00:00]} e6 {[%emt 0:00:20]} 3. g3 {[%emt 0:00:07]} Nc6 {[%emt 0:00:09]} 4. Bg2 {[%emt 0:00:08]} Nf6 {[%emt 0:00:15]} 5. Qe2 {[%emt 0:02:07] B40: Sizilianisch (Klassisches System mit e7-e6)} (5. d3 d5 6. Nbd2 Be7 7. O-O O-O 8. Re1 b5 9. e5 Nd7 10. Nf1 Bb7 11. h4 Qc7 12. Bf4 Rfc8 13. Ne3 Qd8 14. Ng4 Bf8 15. Bg5 Qe8 16. c3 h6 17. Bf4 a5 18. Qd2 b4 19. c4 Ne7 20. h5 {1-0 (59) Kuzubov,Y (2699)-Grischuk,A (2772) Riadh 2017}) 5... e5 {[%emt 0:03:38]} 6. O-O {[%emt 0:02:30]} Be7 {[%emt 0:00:07]} 7. c3 {[%emt 0:02:21]} O-O {[%emt 0:00:38]} 8. Na3 {[%emt 0:02:56]} Re8 {[%emt 0:01:51]} 9. d3 {[%emt 0:01:55]} h6 {[%emt 0:06:37]} 10. Nc4 {[%emt 0:03:21]} Bf8 {[%emt 0:00:19]} 11. a4 {[%emt 0:03:08]} d6 {[%emt 0:03:44]} 12. Ne3 {[%emt 0:19:24]} g6 {[%emt 0:01:12]} 13. h3 $146 {[%emt 0:01:26]} Bg7 {[%emt 0:00:36]} 14. Nh2 {[%emt 0:00:55]} Rb8 {[%emt 0:09:07]} 15. Nhg4 {[%emt 0:00:48]} Nxg4 {[%emt 0:10:39]} 16. hxg4 {[%emt 0:01:10]} a6 {[%emt 0:01:08]} 17. Bf3 {[%emt 0:00:51]} b5 {[%emt 0:16:31]} 18. axb5 {[%emt 0:00:15]} axb5 {[%emt 0:00:04]} 19. Kg2 {[%emt 0:02:25]} Bb7 $14 {[%emt 0:02:49]} 20. Rh1 {[%emt 0:01:13]} Ne7 {[%emt 0:04:03]} 21. Nc2 {[%emt 0:07:11]} g5 {[%emt 0:01:10]} 22. Ne3 {[%emt 0:04:21]} d5 {[%emt 0:03:37]} 23. exd5 {[%emt 0:01:20]} Nxd5 {[%emt 0:02:14]} 24. Ra7 {[%emt 0:07:27]} Bc6 {[%emt 0:09:53]} 25. Be4 {[%emt 0:08:58]} Re7 {[%emt 0:09:20]} 26. Rxe7 {[%emt 0:01:21]} Nxe3+ {[%emt 0:00:42]} 27. Qxe3 {[%emt 0:02:29]} Bxe4+ {[%emt 0:00:12]} 28. Qxe4 {[%emt 0:00:03]} Qxe7 {[%emt 0:00:15]} 29. Be3 {[%emt 0:00:05]} c4 {[%emt 0:04:38]} 30. dxc4 {[%emt 0:02:46]} bxc4 {[%emt 0:00:07]} 31. Ra1 {[%emt 0:00:32]} Qe6 {[%emt 0:01:45]} 32. Ra4 {[%emt 0:00:54]} Rc8 {[%emt 0:00:32]} 33. Rb4 {[%emt 0:00:16]} Rc6 {[%emt 0:03:16]} 34. Rb5 {[%emt 0:01:34]} Rc8 {[%emt 0:00:52]} 35. Rb6 {[%emt 0:06:15]} Qd7 {[%emt 0:00:10]} 36. Rb7 {[%emt 0:00:58]} Qe6 {[%emt 0:00:05]} 37. f3 {[%emt 0:03:55]} Rc6 {[%emt 0:01:22]} 38. Kf2 {[%emt 0:01:13]} Rc8 {[%emt 0:00:23]} 39. Ke2 {[%emt 0:01:33]} Qa6 {[%emt 0:00:22]} 40. Qd5 {[%emt 0:01:25]} Qg6 {[%emt 0:00:09]} 41. Qe4 {[%emt 0:00:33]} Qe6 {[%emt 0:00:10]} 42. Qf5 {[%emt 0:00:26]} Qe8 {[%emt 0:01:40]} 43. Qd7 {[%emt 0:02:05]} Qxd7 {[%emt 0:01:33]} 44. Rxd7 {[%emt 0:00:04]} Bf8 {[%emt 0:00:20]} 45. Rb7 {[%emt 0:01:04]} Kg7 {[%emt 0:00:26]} 46. Ba7 {[%emt 0:00:32]} Bc5 {[%emt 0:00:46]} 47. Bxc5 {[%emt 0:00:08]} Rxc5 {[%emt 0:00:01]} 48. Ke3 {[%emt 0:00:07]} Kg6 {[%emt 0:00:26]} 49. Ke4 {[%emt 0:00:44]} f6 {[%emt 0:01:15]} 50. Rd7 {[%emt 0:01:48]} Rb5 {[%emt 0:00:12]} 51. Rd2 {[%emt 0:01:08]} 1/2-1/2

[Event "8th RTU Open 2018"]
[Site "Riga"]
[Date "2018.08.09"]
[Round "5"]
[White "Miedema, David"]
[Black "Thogersen, Rasmus"]
[Result "1/2-1/2"]
[ECO "A04"]
[WhiteElo "2397"]
[BlackElo "2275"]
[Annotator "NA"]
[PlyCount "170"]
[EventDate "2018.08.06"]
[EventType "swiss"]
[EventCountry "LAT"]
[SourceTitle "playchess.com"]
[Source "ChessBase"]
[SourceQuality "1"]
[TimeControl "5400+30"]

1. Nf3 {[%emt 0:00:00]} c5 {[%emt 0:00:34]} 2. g3 {[%emt 0:00:35]} g6 {[%emt 0:00:08]} 3. Bg2 {[%emt 0:00:05]} Bg7 {[%emt 0:00:04]} 4. O-O {[%emt 0:00:07]} Nc6 {[%emt 0:00:03]} 5. d3 {[%emt 0:04:34]} e5 {[%emt 0:01:06]} 6. Nbd2 {[%emt 0:02:45]} Nge7 {[%emt 0:00:05]} 7. a3 {[%emt 0:00:25]} O-O {[%emt 0:00:45]} 8. Rb1 {[%emt 0:00:17]} a5 {[%emt 0:12:37]} 9. c4 {[%emt 0:08:06]} d5 {[%emt 0:01:30]} 10. cxd5 {[%emt 0:00:18]} Nxd5 {[%emt 0:00:07]} 11. e3 {[%emt 0:05:34]} h6 {[%emt 0:05:13]} 12. Qc2 {[%emt 0:00:12]} b6 {[%emt 0:01:09]} 13. b3 {[%emt 0:06:30]} Ba6 {[%emt 0:12:11]} 14. Bb2 {[%emt 0:07:59]} e4 {[%emt 0:21:32]} 15. dxe4 {[%emt 0:10:40]} ({Nicht} 15. Nxe4 Nxe3 16. fxe3 Bxd3 $17) 15... Bxf1 $11 {[%emt 0:23:42]} 16. Rxf1 Nc7 17. e5 {[%emt 0:09:39]} Ne6 {[%emt 0:11:23]} 18. Nc4 {[%emt 0:03:36]} Qc7 {[%emt 0:01:24]} 19. Nfd2 {[%emt 0:06:21]} Rad8 {[%emt 0:03:10]} 20. f4 {[%emt 0:00:24]} Ne7 {[%emt 0:02:59]} 21. a4 {[%emt 0:02:00]} Rd7 {[%emt 0:02:41]} 22. Ne4 {[%emt 0:03:09]} Rfd8 {[%emt 0:00:33]} 23. Ned6 {[%emt 0:02:22]} Nc8 {[%emt 0:03:08]} 24. Nb5 {[%emt 0:01:08]} Qb8 {[%emt 0:00:12]} 25. g4 {[%emt 0:00:12]} Nc7 {[%emt 0:01:29]} 26. Bc6 {[%emt 0:03:49]} Re7 {[%emt 0:00:50]} 27. Nbd6 {[%emt 0:01:23]} Na6 {[%emt 0:00:38]} 28. Nxc8 {[%emt 0:07:12]} Qxc8 {[%emt 0:00:30]} 29. Qg2 {[%emt 0:00:24]} Nb4 {[%emt 0:00:58]} 30. Be4 {[%emt 0:01:04]} Qc7 {[%emt 0:03:07]} 31. Bc3 {[%emt 0:00:08]} Red7 {[%emt 0:02:00]} 32. Qe2 {[%emt 0:00:59]} Kh7 {[%emt 0:02:02]} 33. h4 {[%emt 0:00:27]} Nd5 {[%emt 0:01:18]} 34. Be1 {[%emt 0:00:27]} Ne7 {[%emt 0:00:34]} 35. Bg3 {[%emt 0:00:22]} f5 {[%emt 0:01:49]} 36. exf6 {[%emt 0:00:05]} Bxf6 {[%emt 0:00:07]} 37. h5 {[%emt 0:00:24]} Kg7 {[%emt 0:01:45]} 38. hxg6 {[%emt 0:00:05]} Nd5 {[%emt 0:00:59]} 39. Qh2 {[%emt 0:01:09]} Rh8 {[%emt 0:00:55]} 40. Bf5 {[%emt 0:08:56]} Rdd8 {[%emt 0:01:54]} 41. Qc2 {[%emt 0:00:42]} Rhe8 {[%emt 0:01:48]} 42. e4 {[%emt 0:00:32]} Nb4 {[%emt 0:00:46]} 43. Qh2 {[%emt 0:00:30]} Bc3 {[%emt 0:01:15]} 44. Bh4 {[%emt 0:01:51]} Rd3 {[%emt 0:00:46]} 45. Qg2 {[%emt 0:01:42]} Bd4+ {[%emt 0:00:27]} 46. Kh1 {[%emt 0:00:22]} Qc6 {[%emt 0:01:12]} 47. Nd2 {[%emt 0:02:29]} Nc2 {[%emt 0:00:36]} 48. Nc4 {[%emt 0:00:44]} Ne3 {[%emt 0:00:40]} 49. Nxe3 {[%emt 0:00:03]} Rxe3 {[%emt 0:00:12]} 50. Rf3 {[%emt 0:00:20]} c4 {[%emt 0:00:51]} 51. Rxe3 {[%emt 0:01:28]} Bxe3 {[%emt 0:00:02]} 52. Qf3 {[%emt 0:00:40]} c3 {[%emt 0:01:00]} 53. Qxe3 {[%emt 0:00:37]} c2 54. Qc1 {[%emt 0:00:02]} Rxe4 {[%emt 0:01:11]} 55. Kg1 {[%emt 0:00:56]} Re2 {[%emt 0:00:21]} 56. Bf2 {[%emt 0:00:03]} Qf3 {[%emt 0:00:33]} 57. Qb2+ {[%emt 0:00:23]} Kg8 {[%emt 0:00:21]} 58. Be6+ {[%emt 0:00:10]} Rxe6 {[%emt 0:00:05]} 59. Qxc2 {[%emt 0:00:02]} Qxg4+ {[%emt 0:00:42]} 60. Kf1 {[%emt 0:00:02]} Qh3+ {[%emt 0:00:07]} 61. Kg1 {[%emt 0:00:05]} Qg4+ {[%emt 0:00:17]} 62. Kf1 {[%emt 0:00:01]} Qxg6 {[%emt 0:01:20]} 63. f5 {[%emt 0:00:14]} Rc6 {[%emt 0:00:11]} 64. Qe4 {[%emt 0:00:16]} Rc1+ {[%emt 0:00:27]} 65. Ke2 {[%emt 0:00:10]} Qh5+ {[%emt 0:00:05]} 66. Ke3 {[%emt 0:00:29]} Qh3+ {[%emt 0:00:18]} 67. Kf4 {[%emt 0:00:44]} Qh2+ {[%emt 0:00:37]} 68. Kg4 {[%emt 0:00:03]} Qd6 {[%emt 0:01:21]} 69. Bd4 {[%emt 0:01:03]} Qc6 {[%emt 0:00:40]} 70. Qe2 {[%emt 0:03:10]} Rc2 {[%emt 0:00:28]} 71. Qe5 {[%emt 0:00:50]} Qg2+ {[%emt 0:00:31]} 72. Kh5 {[%emt 0:00:04]} Qe2+ {[%emt 0:00:23]} 73. Qxe2 {[%emt 0:00:07]} Rxe2 {[%emt 0:00:05]} 74. Kxh6 {[%emt 0:00:13]} Kf7 {[%emt 0:01:04]} 75. Kg5 {[%emt 0:00:15]} Rg2+ {[%emt 0:00:25]} 76. Kf4 {[%emt 0:00:04]} Rd2 {[%emt 0:00:33]} 77. Ke4 {[%emt 0:00:14]} Rh2 {[%emt 0:00:26]} 78. Kd5 {[%emt 0:00:11]} Rh5 {[%emt 0:00:36]} 79. Bxb6 {[%emt 0:01:05]} Rxf5+ {[%emt 0:00:05]} 80. Kc6 {[%emt 0:00:20]} Ke6 {[%emt 0:00:11]} 81. Bc5 {[%emt 0:00:09]} Rf4 {[%emt 0:00:43]} 82. Bb6 {[%emt 0:01:20]} Rf5 {[%emt 0:00:37]} 83. Bc5 {[%emt 0:00:04]} Rf3 {[%emt 0:00:24]} 84. b4 {[%emt 0:00:26]} axb4 {[%emt 0:00:04]} 85. Bxb4 {[%emt 0:00:10]} Rf4 {[%emt 0:00:10]} 1/2-1/2

[Event "8th RTU Open 2018"]
[Site "Riga"]
[Date "2018.08.09"]
[Round "5"]
[White "Akesson, Ralf"]
[Black "Gurvich, Vitaly"]
[Result "1/2-1/2"]
[ECO "A28"]
[WhiteElo "2389"]
[BlackElo "2272"]
[Annotator "NA"]
[PlyCount "113"]
[EventDate "2018.08.06"]
[EventType "swiss"]
[EventCountry "LAT"]
[SourceTitle "playchess.com"]
[Source "ChessBase"]
[SourceQuality "1"]
[TimeControl "5400+30"]

1. c4 {[%emt 0:09:18]} e5 {[%emt 0:01:28]} 2. Nc3 {[%emt 0:00:17]} Nf6 {[%emt 0:00:08]} 3. Nf3 {[%emt 0:00:17]} Nc6 {[%emt 0:00:09]} 4. e3 {[%emt 0:01:07]} Be7 {[%emt 0:00:08]} 5. d4 {[%emt 0:01:25]} exd4 {[%emt 0:00:08]} 6. Nxd4 {[%emt 0:00:40]} O-O {[%emt 0:00:33]} 7. Be2 {[%emt 0:00:19]} d5 {[%emt 0:00:27]} 8. Nxc6 {[%emt 0:06:37]} bxc6 {[%emt 0:01:05]} 9. O-O {[%emt 0:00:11]} Bd6 {[%emt 0:06:44] LiveBook: 13 Games} 10. b3 {[%emt 0:03:54]} Be6 {[%emt 0:13:58]} 11. Bb2 {[%emt 0:02:49]} a6 {[%emt 0:03:36]} 12. Rc1 {[%emt 0:03:42]} dxc4 {[%emt 0:17:27]} 13. bxc4 {[%emt 0:04:06]} Rb8 {[%emt 0:00:57]} 14. Ba1 $11 {[%emt 0:01:16]} Bf5 15. Qa4 {[%emt 0:11:44]} Nd7 {[%emt 0:18:53]} 16. Rfd1 Qe7 17. Qxc6 {[%emt 0:07:45]} Rb6 {[%emt 0:08:58]} 18. Qf3 {[%emt 0:02:59]} Bxh2+ {[%emt 0:06:06]} 19. Kf1 {[%emt 0:00:51]} Be6 {[%emt 0:08:34]} 20. Nd5 {[%emt 0:08:56]} Bxd5 {[%emt 0:00:06]} 21. Qxd5 {[%emt 0:03:22]} Rd6 {[%emt 0:01:22]} 22. Qf5 {[%emt 0:04:45]} Be5 {[%emt 0:01:17]} 23. c5 {[%emt 0:02:56]} Rxd1+ {[%emt 0:00:07]} 24. Rxd1 {[%emt 0:00:07]} Bxa1 {[%emt 0:00:09]} 25. Rxd7 {[%emt 0:04:21]} Qh4 {[%emt 0:00:08]} 26. Kg1 {[%emt 0:00:25]} c6 {[%emt 0:03:29]} 27. g4 {[%emt 0:07:33]} g6 {[%emt 0:01:40]} 28. Qf4 {[%emt 0:00:44]} Kg7 {[%emt 0:05:27]} 29. Bxa6 {[%emt 0:00:32]} Bf6 {[%emt 0:00:26]} 30. Bc4 {[%emt 0:01:20]} h5 {[%emt 0:00:31]} 31. Be6 {[%emt 0:04:53]} hxg4 {[%emt 0:00:25]} 32. Qxg4 {[%emt 0:00:18]} Qxg4+ {[%emt 0:01:03]} 33. Bxg4 {[%emt 0:00:07]} Be5 {[%emt 0:00:25]} 34. Be6 {[%emt 0:00:31]} Bc3 {[%emt 0:00:21]} 35. Rb7 {[%emt 0:00:37]} Kf6 {[%emt 0:00:28]} 36. Bb3 {[%emt 0:00:06]} g5 {[%emt 0:00:16]} 37. Rc7 {[%emt 0:00:13]} g4 {[%emt 0:00:26]} 38. Rxc6+ {[%emt 0:00:10]} Kg5 {[%emt 0:00:04]} 39. Kg2 {[%emt 0:00:39]} f5 {[%emt 0:00:05]} 40. Rc7 {[%emt 0:02:09]} f4 {[%emt 0:00:21]} 41. exf4+ {[%emt 0:00:42]} Rxf4 {[%emt 0:00:05]} 42. c6 {[%emt 0:00:59]} Bd4 {[%emt 0:01:48]} 43. Rf7 {[%emt 0:00:10]} Rxf7 {[%emt 0:00:25]} 44. Bxf7 {[%emt 0:00:06]} Be5 {[%emt 0:00:05]} 45. a4 {[%emt 0:00:14]} Bc7 {[%emt 0:00:05]} 46. Kf1 {[%emt 0:00:14]} Kf6 {[%emt 0:00:22]} 47. Bh5 {[%emt 0:01:04]} Kg5 {[%emt 0:02:05]} 48. Be8 {[%emt 0:00:09]} Kf6 {[%emt 0:00:25]} 49. Bd7 {[%emt 0:01:22]} Kg5 {[%emt 0:00:44]} 50. Ke2 {[%emt 0:00:10]} Kf4 {[%emt 0:00:23]} 51. Kd3 {[%emt 0:01:03]} Kf3 {[%emt 0:00:37]} 52. Kc4 {[%emt 0:00:07]} Kxf2 {[%emt 0:00:10]} 53. Bxg4 {[%emt 0:00:07]} Ke3 {[%emt 0:00:03]} 54. Kb5 {[%emt 0:00:29]} Kd4 {[%emt 0:00:07]} 55. a5 {[%emt 0:00:49]} Kd5 {[%emt 0:00:15]} 56. a6 {[%emt 0:00:10]} Bb8 {[%emt 0:00:18]} 57. c7 {[%emt 0:00:23]} 1/2-1/2